bitfinex/quotes_SOLUSD_20250806
["timestamp","ask_amount","ask_price","bid_price","bid_amount"]
[1754453818509,4.1403596,161.55,161.52,89.8]
[1754453818706,4.1403596,161.55,161.52,98.42853128]
[1754453819037,4.1403596,161.55,161.53,0.7]
[1754453820399,58.09822626,161.56,161.53,8.62853128]
[1754453820400,49.46969498,161.56,161.53,8.62853128]
[1754453820596,43.28,161.56,161.55,8.62853128]
[1754453820801,6.21744727,161.62,161.55,9.32853128]
[1754453821028,4.14314349,161.61,161.56,0.7]
[1754453821333,49.51744727,161.62,161.59,8.62853128]
[1754453821334,4.14270694,161.6,161.59,8.62853128]
[1754453821630,4.14270694,161.61,161.59,9.32853128]
[1754453821798,4.14270694,161.6,161.59,9.32853128]
[1754453822002,10.33049469,161.61,161.58,8.62853128]
[1754453822203,4.14270694,161.6,161.58,9.32853128]
[1754453823425,4.14270694,161.6,161.58,8.62853128]
[1754453823754,4.14270694,161.61,161.59,9.32853128]
[1754453824233,4.14270694,161.61,161.59,8.62853128]
[1754453824435,10.33051806,161.61,161.58,0.67]
[1754453824616,10.33051806,161.61,161.58,9.29853128]
[1754453824929,10.33051806,161.61,161.59,0.67]
[1754453825303,10.33051806,161.61,161.58,8.62853128]
[1754453825505,10.33051806,161.61,161.58,9.29853128]
[1754453826512,4.14270694,161.6,161.58,0.67]
[1754453826822,10.33051806,161.61,161.58,0.67]
[1754453828234,4.14270694,161.61,161.59,0.67]
[1754453828536,10.33052457,161.61,161.59,0.67]
[1754453829513,10.33052457,161.61,161.58,8.62853128]
[1754453829727,10.33052457,161.61,161.58,9.29853128]
[1754453830438,10.33052457,161.61,161.59,0.67]
[1754453831524,4.14270694,161.61,161.6,0.67]
[1754453834153,4.14270694,161.61,161.58,9.29853128]
[1754453834320,4.14270694,161.61,161.59,0.67]
[1754453835641,4.14270694,161.61,161.59,89.77]
[1754453836755,4.14270694,161.61,161.6,0.67]
[1754453837118,58.08590124,161.62,161.6,0.67]
[1754453837307,4.13370852,161.61,161.6,0.67]
[1754453837638,4.13370852,161.61,161.59,89.77]
[1754453838042,4.13370852,161.61,161.6,0.67]
[1754453840147,4.13370852,161.61,161.59,89.1]
[1754453840525,4.13370852,161.61,161.6,0.67]
[1754453840727,4.13370852,161.61,161.59,89.1]
[1754453841545,10.32165215,161.61,161.58,89.1]
[1754453841717,4.13370852,161.6,161.58,89.77]
[1754453841930,4.70370852,161.6,161.58,89.1]
[1754453842324,4.13370852,161.59,161.58,89.1]
[1754453842643,4.13370852,161.59,161.58,89.77]
[1754453843344,4.13370852,161.59,161.58,89.1]
[1754453843823,4.13370852,161.59,161.58,89.77]
[1754453844723,4.13370852,161.59,161.58,89.1]
[1754453845222,4.13370852,161.59,161.58,89.77]
[1754453845426,4.13370852,161.59,161.58,104.58741604]
[1754453845632,4.13370852,161.61,161.58,104.58741604]
[1754453845813,4.13370852,161.6,161.59,9.29853128]
[1754453846145,4.13370852,161.6,161.59,8.62853128]
[1754453846641,4.13370852,161.6,161.58,89.1]
[1754453846824,4.13370852,161.59,161.58,89.77]
[1754453847235,4.13370852,161.59,161.58,95.95888476]
[1754453847952,4.13370852,161.59,161.58,104.58741604]
[1754453848738,0.03,161.62,161.58,104.58741604]
[1754453848941,4.14255128,161.61,161.59,43.91]
[1754453849118,0.03,161.62,161.6,0.67]
[1754453849320,4.14264952,161.61,161.6,0.67]
[1754453849821,4.14264952,161.61,161.59,132.34]
[1754453849822,4.14264952,161.61,161.59,89.1]
[1754453850025,0.03,161.62,161.59,98.39853128]
[1754453850236,4.14264229,161.61,161.59,98.39853128]
[1754453850441,0.03,161.62,161.6,0.67]
[1754453850751,0.03,161.62,161.6,9.29853128]
[1754453851263,0.03,161.62,161.61,0.67]
[1754453851552,4.17271645,161.62,161.61,0.67]
[1754453851858,4.17271645,161.62,161.61,9.29853128]
[1754453853848,4.17271645,161.62,161.61,104.58626718]
[1754453854655,0.03,161.62,161.61,104.58626718]
[1754453856554,0.03,161.62,161.61,98.39853128]
[1754453858963,0.03,161.62,161.61,89.77]
[1754453859145,0.03,161.62,161.61,98.39853128]
[1754453860640,0.03,161.62,161.61,89.77]
[1754453860853,0.03,161.62,161.61,98.39853128]
[1754453861463,0.03,161.62,161.61,89.77]
[1754453861641,0.03,161.62,161.61,98.39853128]
[1754453863537,4.1695982,161.62,161.61,89.1]
[1754453864463,4.1695982,161.62,161.61,89.8]
[1754453864648,0.03,161.62,161.61,98.42853128]
[1754453865360,0.03,161.62,161.61,95.9877359]
[1754453865561,0.03,161.62,161.61,104.61626718]
[1754453868188,0.03,161.62,161.61,141.68853128]
[1754453868480,0.03,161.62,161.61,132.36]
[1754453869253,0.03,161.62,161.6,8.62853128]
[1754453869465,0.03,161.62,161.6,51.88853128]
[1754453869666,0.03,161.62,161.6,52.58853128]
[1754453869846,4.17233584,161.62,161.6,52.58853128]
[1754453871481,0.03,161.62,161.6,52.58853128]
[1754453871898,0.03,161.62,161.6,51.88853128]
[1754453872771,0.03,161.62,161.6,52.58853128]
[1754453873165,0.03,161.62,161.61,0.7]
[1754453873478,4.17375544,161.62,161.6,52.58853128]
[1754453873686,0.03,161.62,161.6,43.96]
[1754453873882,0.03,161.62,161.6,43.94]
[1754453874186,0.03,161.62,161.6,133.04]
[1754453874594,0.03,161.62,161.6,132.34]
[1754453874961,0.03,161.62,161.6,133.04]
[1754453875778,4.1434785,161.61,161.6,89.1]
[1754453875992,13.34200978,161.61,161.6,89.1]
[1754453876490,13.34200978,161.61,161.56,132.36]
[1754453876668,19.53050007,161.6,161.56,132.36]
[1754453876864,8.62853128,161.58,161.56,89.1]
[1754453877097,4.1434785,161.57,161.56,89.1]
[1754453877279,8.62853128,161.58,161.56,89.1]
[1754453877989,0.57,161.57,161.56,89.1]
[1754453878157,39.34103507,161.57,161.53,0.06]
[1754453878362,4.14250379,161.56,161.53,0.76]
[1754453878557,34.62853128,161.57,161.54,0.7]
[1754453878770,4.14182018,161.56,161.55,0.7]
[1754453878974,4.14182018,161.56,161.53,0.76]
[1754453879175,26.0,161.57,161.53,0.06]
[1754453879377,26.0,161.57,161.54,0.7]
[1754453879595,26.0,161.57,161.54,9.32853128]
[1754453879757,26.0,161.57,161.54,0.7]
[1754453879955,4.14204888,161.56,161.53,0.06]
[1754453880195,8.62853128,161.56,161.53,0.06]
[1754453880360,8.62853128,161.56,161.53,0.76]
[1754453881298,8.62853128,161.54,161.53,0.06]
[1754453881456,12.77375254,161.54,161.53,0.06]
[1754453882461,97.80996811,161.54,161.53,0.06]
[1754453883089,104.00038534,161.54,161.53,0.06]
[1754453884158,73.50522126,161.54,161.53,0.06]
[1754453884391,69.36,161.54,161.53,0.06]
[1754453884690,73.49609264,161.54,161.53,0.06]
[1754453884887,82.12462392,161.54,161.53,0.06]
[1754453885195,77.98853128,161.54,161.53,0.06]
[1754453885491,88.8834582,161.54,161.53,0.06]
[1754453885702,77.98853128,161.54,161.53,0.06]
[1754453887070,88.31217932,161.54,161.53,0.06]
[1754453887272,103.98839489,161.54,161.53,0.06]
[1754453887474,104.13055646,161.54,161.53,0.06]
[1754453888287,30.13323081,161.54,161.53,0.06]
[1754453888480,43.42,161.56,161.53,0.76]
[1754453888815,69.42,161.56,161.53,0.76]
[1754453889799,69.42,161.56,161.54,0.7]
[1754453890375,26.0,161.56,161.54,0.7]
[1754453890680,43.42,161.57,161.55,9.32853128]
[1754453890888,43.42,161.57,161.56,0.7]
[1754453891682,43.42,161.59,161.56,9.32853128]
[1754453892002,43.42,161.59,161.57,0.7]
[1754453893385,43.42,161.59,161.58,0.7]
[1754453893817,26.0,161.6,161.58,9.32853128]
[1754453894111,15.13621557,161.62,161.59,9.32853128]
[1754453894112,0.03,161.62,161.59,9.32853128]
[1754453894289,0.03,161.62,161.61,8.62853128]
[1754453894682,0.03,161.62,161.6,9.32853128]
[1754453895098,0.03,161.62,161.6,8.62853128]
[1754453895499,44.02,161.62,161.58,9.32853128]
[1754453895809,5.15793124,161.61,161.57,8.62853128]
[1754453896107,43.45,161.62,161.58,8.62853128]
[1754453896309,4.58802478,161.61,161.58,0.7]
[1754453896602,4.58802478,161.61,161.59,0.7]
[1754453897505,4.58802478,161.61,161.57,15.51772372]
[1754453897708,4.58802478,161.61,161.58,0.7]
[1754453898093,43.44,161.6,161.56,9.32853128]
[1754453898289,43.44,161.6,161.57,0.7]
[1754453899089,43.44,161.6,161.58,0.7]
[1754453899485,43.44,161.6,161.59,0.7]
[1754453900211,40.52732173,161.6,161.57,8.62853128]
[1754453900409,35.94,161.6,161.57,9.32853128]
[1754453900792,36.51,161.6,161.57,89.1]
[1754453901203,35.94,161.6,161.58,0.7]
[1754453901425,26.03,161.62,161.59,0.7]
[1754453901620,0.03,161.62,161.61,8.62853128]
[1754453901811,0.03,161.62,161.61,9.32853128]
[1754453904621,0.03,161.62,161.61,15.51626718]
[1754453906738,0.03,161.63,161.62,89.07]
[1754453906936,0.03,161.63,161.62,98.39853128]
[1754453907428,0.03,161.63,161.62,52.76853128]
[1754453908439,0.03,161.63,161.62,58.95588433]
[1754453911413,0.03,161.63,161.62,50.32735305]
[1754453911609,0.03,161.63,161.62,58.95588433]
[1754453912619,0.03,161.64,161.63,95.22697024]
[1754453912828,0.03,161.64,161.63,104.55550152]
[1754453913345,0.2,161.65,161.64,0.14216157]
[1754453913641,0.2,161.67,161.64,52.89069285]
[1754453913935,0.2,161.67,161.65,1.31862047]
[1754453914151,0.2,161.67,161.66,44.12]
[1754453914359,0.2,161.67,161.66,52.89069285]
[1754453914555,0.2,161.67,161.66,148.11651494]
[1754453916420,0.03,161.69,161.67,0.14216157]
[1754453916615,0.03,161.69,161.67,15.57467626]
[1754453916923,0.03,161.69,161.67,16.27467626]
[1754453917333,0.03,161.69,161.67,31.38089183]
[1754453917534,0.03,161.69,161.67,268.02089183]
[1754453917739,0.03,161.69,161.68,52.17069285]
[1754453917939,0.03,161.69,161.68,141.91069285]
[1754453918348,0.03,161.69,161.68,167.91069285]
[1754453918524,0.03,161.74,161.73,8.62853128]
[1754453918866,0.03,161.74,161.73,58.23167602]
[1754453919148,0.03,161.74,161.73,58.93167602]
[1754453921828,0.03,161.74,161.73,147.97167602]
[1754453925548,0.03,161.74,161.73,148.11383759]
[1754453925757,0.03,161.74,161.73,310.82005316]
[1754453928654,0.03,161.74,161.73,310.76005316]
[1754453929369,1e-08,161.74,161.73,310.76005316]
[1754453929856,0.2,161.75,161.74,0.14216157]
[1754453930032,0.2,161.75,161.74,9.38896909]
[1754453930248,0.2,161.76,161.75,8.77069285]
[1754453930449,0.2,161.76,161.75,52.81069285]
[1754453930766,0.2,161.76,161.75,58.99307306]
[1754453931665,0.2,161.76,161.75,59.61131108]
[1754453932032,0.03,161.78,161.77,88.78216157]
[1754453932260,0.03,161.78,161.77,288.96885443]
[1754453932461,0.03,161.78,161.77,314.35069285]
[1754453932781,0.69,161.85,161.78,30.05814219]
[1754453933077,0.69,161.85,161.78,30.75814219]
[1754453933569,0.69,161.84,161.78,31.37626556]
[1754453935868,1e-08,161.79,161.78,31.37626556]
[1754453936271,1e-08,161.79,161.78,120.01626556]
[1754453936582,1e-08,161.79,161.78,119.39814219]
[1754453937842,0.69,161.83,161.81,6.18008775]
[1754453938064,0.69,161.83,161.82,51.94853128]
[1754453939575,0.69,161.83,161.82,131.97999999]
[1754453940060,0.69,161.83,161.82,88.63999999]
[1754453940446,9.31853128,161.83,161.82,88.63999999]
[1754453941871,20.05841535,161.83,161.76,8.62853128]
[1754453942071,8.62853128,161.81,161.77,43.36]
[1754453942269,9.31853128,161.8,161.77,43.36]
[1754453942466,0.69,161.79,161.77,43.36]
[1754453943339,14.80876269,161.81,161.77,43.36]
[1754453943539,0.69,161.78,161.77,43.36]
[1754453943770,15.50876269,161.81,161.77,43.36]
[1754453943960,0.7,161.81,161.78,8.62853128]
[1754453944475,0.7,161.81,161.78,97.26853127]
[1754453944660,0.7,161.81,161.78,88.63999999]
[1754453944844,0.7,161.8,161.78,88.63999999]
[1754453945956,9.32853128,161.79,161.73,130.13155982]
[1754453946166,9.32853128,161.78,161.74,43.4]
[1754453946351,0.7,161.77,161.74,43.4]
[1754453946559,0.7,161.77,161.74,52.02853128]
[1754453946876,0.7,161.79,161.75,8.62853128]
[1754453947198,0.7,161.79,161.76,43.4]
[1754453947353,0.7,161.79,161.76,52.02853128]
[1754453949450,0.7,161.82,161.77,9.30853128]
[1754453949699,0.7,161.82,161.79,8.62853128]
[1754453950051,6.87894216,161.84,161.8,8.62853128]
[1754453950369,4.58054007,161.83,161.8,9.30853128]
[1754453950545,6.87894216,161.84,161.8,52.70853128]
[1754453950746,11.0031671,161.84,161.8,52.70853128]
[1754453951884,4.12422494,161.84,161.8,141.34853127]
[1754453952065,4.82422494,161.84,161.8,141.34853127]
[1754453952582,8.62853128,161.81,161.8,88.63999999]
[1754453952757,18.04032515,161.81,161.76,88.63999999]
[1754453952964,8.62853128,161.79,161.76,88.63999999]
[1754453953158,0.7,161.78,161.76,88.63999999]
[1754453953773,8.62853128,161.79,161.76,88.63999999]
[1754453953960,12.75844004,161.79,161.76,88.63999999]
[1754453954164,8.62853128,161.79,161.76,88.63999999]
[1754453954668,4.13230755,161.79,161.76,89.31999999]
[1754453955179,15.50911348,161.8,161.76,89.31999999]
[1754453955386,8.72804501,161.79,161.76,89.31999999]
[1754453955574,15.50911348,161.8,161.76,89.31999999]
[1754453955776,8.72627407,161.79,161.76,95.50189911]
[1754453955956,9.32853128,161.8,161.76,95.50189911]
[1754453956153,8.72659991,161.79,161.76,95.50189911]
[1754453956385,9.32853128,161.8,161.76,95.50189911]
[1754453956581,8.73260692,161.79,161.76,95.50189911]
[1754453956769,9.32853128,161.8,161.76,95.50189911]
[1754453956968,8.73282314,161.79,161.76,95.50189911]
[1754453957181,9.32853128,161.8,161.76,95.50189911]
[1754453957378,8.73914789,161.79,161.76,95.50189911]
[1754453957574,9.32853128,161.8,161.76,95.50189911]
[1754453957780,8.73985338,161.79,161.77,0.68]
[1754453957958,34.62853128,161.81,161.78,0.68]
[1754453958160,8.73939841,161.8,161.78,0.68]
[1754453958383,8.62853128,161.82,161.79,0.68]
[1754453958563,8.747713,161.81,161.79,89.31999999]
[1754453958762,8.747713,161.8,161.79,89.31999999]
[1754453958987,8.747713,161.8,161.79,88.63999999]
[1754453959369,8.747713,161.8,161.79,89.31999999]
[1754453959984,8.747713,161.8,161.79,88.63999999]
[1754453960485,8.747713,161.8,161.79,89.31999999]
[1754453960693,4.6042206,161.8,161.79,147.50938299]
[1754453961074,4.14725879,161.83,161.79,147.50938299]
[1754453961273,8.75776698,161.82,161.79,146.82938299]
[1754453961586,8.75902234,161.81,161.8,0.68]
[1754453961790,8.75902234,161.81,161.79,146.82938299]
[1754453961791,8.75902234,161.81,161.79,132.01999999]
[1754453962088,8.75726296,161.8,161.79,88.63999999]
[1754453963916,4.60922755,161.8,161.79,89.31999999]
[1754453964065,46.71105725,161.85,161.79,104.12938299]
[1754453964268,8.7667514,161.84,161.8,52.70853128]
[1754453964572,8.7667514,161.83,161.81,0.68]
[1754453964763,8.7667514,161.82,161.81,0.68]
[1754453964968,8.7667514,161.82,161.81,97.26853127]
[1754453965170,4.15255268,161.82,161.81,97.26853127]
[1754453965558,0.03,161.85,161.81,97.94853127]
[1754453965892,8.76884445,161.84,161.82,44.08]
[1754453966069,8.76884445,161.83,161.82,44.08]
[1754453966877,4.61521146,161.83,161.82,50.25970584]
[1754453967286,4.6161818,161.83,161.82,44.08]
[1754453967887,4.6161818,161.83,161.82,58.88823712]
[1754453968896,0.03,161.85,161.82,147.52823711]
[1754453969100,0.03,161.85,161.82,146.84823711]
[1754453969287,0.03,161.85,161.84,8.62853128]
[1754453969478,4.18450913,161.85,161.84,52.00853128]
[1754453969683,0.03,161.85,161.84,52.68853128]
[1754453970077,0.03,161.85,161.84,58.86747344]
[1754453980905,0.1,161.91,161.89,26.0]
[1754453981105,0.1,161.91,161.9,51.98853128]
[1754453981442,0.1,161.91,161.9,52.81069285]
[1754453981706,0.1,161.91,161.9,76.5454397]
[1754453982280,0.1,161.91,161.9,82.72209195]
[1754453982615,0.1,161.91,161.9,74.09356067]
[1754453982831,0.1,161.91,161.9,82.72209195]
[1754453983558,0.1,161.91,161.9,85.81025461]
[1754453983909,0.1,161.91,161.9,58.84518353]
[1754453984454,0.1,161.91,161.9,52.06853128]
[1754453984612,15.59487868,161.91,161.86,8.62853128]
[1754453984815,8.62853128,161.89,161.87,43.46]
[1754453985118,9.31853128,161.88,161.86,43.48]
[1754453985310,0.69,161.87,161.85,43.48]
[1754453985711,8.62853128,161.89,161.85,43.48]
[1754453985930,9.31853128,161.88,161.85,132.11999999]
[1754453986137,0.69,161.88,161.85,132.11999999]
[1754453988033,0.79,161.91,161.87,8.62853128]
[1754453988236,0.1,161.91,161.88,44.16]
[1754453988436,0.1,161.91,161.89,8.62853128]
[1754453988741,0.1,161.91,161.9,52.10853128]
[1754453989041,0.1,161.91,161.9,52.78853128]
[1754453989226,0.1,161.91,161.9,52.10853128]
[1754453989630,0.1,161.91,161.9,52.78853128]
[1754453990333,0.1,161.91,161.9,58.96518353]
[1754453991041,0.1,161.91,161.9,52.10853128]
[1754453991222,0.1,161.91,161.9,43.48]
[1754453991539,0.79,161.91,161.87,14.80623592]
[1754453991740,0.69,161.9,161.88,43.48]
[1754453991940,0.69,161.9,161.87,43.48]
[1754453992145,0.69,161.89,161.87,43.48]
[1754453992446,9.31853128,161.88,161.86,43.5]
[1754453992638,0.69,161.88,161.86,43.5]
[1754453993020,8.62853128,161.89,161.86,43.5]
[1754453993220,9.31853128,161.89,161.86,43.5]
[1754453993416,8.62853128,161.9,161.86,43.5]
[1754453993828,15.49528716,161.9,161.86,43.5]
[1754453995030,14.80528716,161.9,161.86,43.5]
[1754453995226,0.69,161.89,161.86,43.5]
[1754453995413,6.17675588,161.9,161.86,43.5]
[1754453995614,8.62853128,161.89,161.86,43.5]
[1754453996140,15.49528716,161.9,161.86,44.18]
[1754453998144,15.49563827,161.89,161.86,43.5]
[1754454000448,14.80530908,161.9,161.86,43.5]
[1754454000836,14.80530908,161.9,161.87,0.68]
[1754454001217,8.62853128,161.89,161.86,43.5]
[1754454001457,8.62853128,161.89,161.86,44.18]
[1754454001854,8.62853128,161.89,161.86,43.5]
[1754454002019,8.62853128,161.89,161.87,0.68]
[1754454002424,8.62853128,161.89,161.85,52.06853128]
[1754454002747,8.62853128,161.89,161.85,43.44]
[1754454002935,9.31853128,161.89,161.85,44.12]
[1754454003135,9.31853128,161.89,161.85,0.68]
[1754454003331,15.49563204,161.89,161.85,44.12]
[1754454004147,14.80563204,161.89,161.85,44.12]
[1754454004556,14.80563204,161.89,161.86,0.66]
[1754454005358,14.80563204,161.89,161.86,89.76]
[1754454006155,8.62853128,161.89,161.86,89.1]
[1754454006361,14.80528782,161.9,161.87,0.66]
[1754454007175,8.62853128,161.89,161.87,0.66]
[1754454007464,12.76753467,161.89,161.86,89.1]
[1754454008163,12.76753467,161.89,161.86,89.76]
[1754454009168,12.76753467,161.89,161.87,0.66]
[1754454009364,8.62853128,161.89,161.87,0.66]
[1754454009661,12.76810101,161.9,161.87,0.66]
[1754454009970,8.62853128,161.88,161.86,89.1]
[1754454010135,13.44720887,161.87,161.83,89.16]
[1754454010334,12.76720887,161.86,161.83,0.72]
[1754454010547,8.62853128,161.86,161.83,0.72]
[1754454010754,8.62853128,161.85,161.83,0.72]
[1754454011474,12.76784895,161.85,161.83,0.72]
[1754454011650,12.7675525,161.84,161.83,0.06]
[1754454011833,13.4475525,161.84,161.83,0.06]
[1754454012033,8.62853128,161.84,161.83,0.06]
[1754454012765,12.7675525,161.85,161.83,0.72]
[1754454012967,8.62853128,161.86,161.83,0.72]
[1754454013979,15.24837714,161.88,161.84,0.66]
[1754454013980,14.80607691,161.88,161.84,0.66]
[1754454014139,4.13706068,161.87,161.84,0.66]
[1754454014349,14.80607691,161.88,161.85,0.66]
[1754454014669,14.80607691,161.88,161.83,8.68853128]
[1754454014670,8.62853128,161.86,161.83,0.06]
[1754454014852,8.62853128,161.84,161.83,0.06]
[1754454015054,12.76551246,161.84,161.83,0.06]
[1754454015255,8.62853128,161.84,161.83,0.06]
[1754454015556,15.48747344,161.84,161.83,0.06]
[1754454015766,9.30853128,161.84,161.83,0.06]
[1754454015965,8.62853128,161.84,161.83,0.06]
[1754454016346,19.62303731,161.84,161.83,0.06]
[1754454016744,9.30853128,161.84,161.83,0.06]
[1754454016959,8.62853128,161.84,161.83,0.06]
[1754454017481,19.62246687,161.84,161.83,0.06]
[1754454017851,8.62853128,161.84,161.83,0.06]
[1754454019262,8.62853128,161.85,161.83,0.06]
[1754454019463,12.76276821,161.85,161.83,0.72]
[1754454019657,8.62853128,161.86,161.83,0.72]
[1754454019863,4.13431992,161.85,161.83,0.06]
[1754454020086,8.62853128,161.85,161.83,0.06]
[1754454022086,12.7628512,161.86,161.84,0.66]
[1754454022286,8.62853128,161.85,161.83,0.06]
[1754454022458,8.62853128,161.84,161.83,0.06]
[1754454022859,8.62853128,161.85,161.83,0.06]
[1754454023088,8.62853128,161.85,161.83,0.72]
[1754454023484,8.62853128,161.85,161.83,0.06]
[1754454023858,8.62853128,161.85,161.83,0.72]
[1754454024963,8.62853128,161.85,161.83,89.16]
[1754454025786,9.30853128,161.84,161.83,89.16]
[1754454025981,13.44085917,161.84,161.83,89.16]
[1754454026375,28.54707474,161.84,161.83,89.16]
[1754454026584,54.68923631,161.84,161.83,0.06]
[1754454027888,60.86817847,161.84,161.83,0.06]
[1754454028080,60.7260169,161.84,161.83,0.06]
[1754454028284,34.0460169,161.84,161.83,0.06]
[1754454029480,34.7260169,161.84,161.83,0.06]
[1754454031065,34.7260169,161.84,161.83,0.72]
[1754454031066,4.13423329,161.84,161.83,0.72]
[1754454032570,8.65853128,161.87,161.83,0.72]
[1754454032800,4.13455253,161.86,161.83,0.72]
[1754454032980,4.13455253,161.86,161.84,0.66]
[1754454033458,4.13455253,161.86,161.85,0.66]
[1754454034002,4.16455253,161.87,161.85,0.66]
[1754454035076,4.16455253,161.87,161.86,0.65]
[1754454035400,0.03,161.87,161.86,0.65]
[1754454035600,0.03,161.87,161.86,9.27853128]
[1754454035896,0.03,161.87,161.86,15.45670995]
[1754454038699,0.03,161.87,161.86,58.89670995]
[1754454042295,0.03,161.89,161.87,89.07]
[1754454042461,0.03,161.89,161.88,8.62853128]
[1754454042665,0.03,161.89,161.88,9.27853128]
[1754454043909,0.03,161.89,161.88,58.85594664]
[1754454045608,0.03,161.89,161.88,147.92594664]
[1754454047206,0.03,161.89,161.88,173.92594664]
[1754454047732,0.1,161.91,161.89,89.04]
[1754454048032,0.1,161.91,161.9,52.00853128]
[1754454048213,0.1,161.91,161.9,147.87518353]
[1754454050852,0.1,161.91,161.9,173.87518353]
[1754454051146,0.1,161.91,161.9,182.50371481]
[1754454051505,0.1,161.91,161.9,330.24587638]
[1754454051941,1e-08,161.91,161.9,330.24587638]
[1754454052150,1e-08,161.91,161.9,319.35209195]
[1754454055039,1e-08,161.91,161.9,324.94722889]
[1754454056145,1e-08,161.91,161.9,316.31869761]
[1754454056325,1e-08,161.91,161.9,324.94722889]
[1754454056528,0.03,161.93,161.92,0.14216157]
[1754454056711,0.66,161.99,161.97,8.62853128]
[1754454056918,0.66,161.99,161.98,43.34]
[1754454057115,0.1,162.0,161.98,43.34]
[1754454057343,0.76,162.0,161.98,43.34]
[1754454057521,0.76,162.0,161.98,51.96853128]
[1754454058227,0.76,162.0,161.98,58.14210126]
[1754454058439,0.1,162.0,161.99,8.62853128]
[1754454060043,0.1,162.0,161.99,103.81175184]
[1754454060915,0.76,162.0,161.99,132.33]
[1754454061926,0.1,162.0,161.99,132.33]
[1754454062845,0.76,162.0,161.99,132.33]
[1754454063533,0.1,162.0,161.99,132.33]
[1754454063740,0.1,162.0,161.99,147.79175184]
[1754454064345,0.1,162.04,162.01,88.91]
[1754454064532,0.1,162.04,162.03,8.62853128]
[1754454065249,0.1,162.04,162.02,51.94853128]
[1754454067633,0.1,162.04,162.03,0.66]
[1754454067843,0.1,162.04,162.03,9.28853128]
[1754454068630,0.1,162.04,162.03,8.62853128]
[1754454069659,0.1,162.04,162.03,15.46022787]
[1754454070163,0.1,162.04,162.02,138.40198975]
[1754454070329,0.1,162.04,162.03,8.62853128]
[1754454072357,0.1,162.04,162.03,97.53853128]
[1754454072558,0.1,162.04,162.03,104.37022787]
[1754454072948,0.1,162.08,162.05,88.81]
[1754454073150,0.1,162.08,162.07,8.62853128]
[1754454073666,0.1,162.08,162.07,9.28853128]
[1754454073830,0.1,162.08,162.07,156.88853128]
[1754454074230,0.1,162.08,162.07,163.05870466]
[1754454078161,0.66,162.13,162.1,88.71]
[1754454078356,0.66,162.13,162.11,51.90853128]
[1754454078765,0.66,162.13,162.11,43.28]
[1754454080735,15.45642575,162.13,162.11,43.28]
[1754454080957,0.66,162.12,162.1,88.71]
[1754454081133,0.66,162.12,162.11,43.26]
[1754454081972,0.66,162.12,162.09,88.71]
[1754454081973,9.28853128,162.12,162.09,88.71]
[1754454082144,6.16789447,162.13,162.09,131.97]
[1754454082145,9.28853128,162.11,162.09,131.97]
[1754454082340,6.16789447,162.13,162.06,88.71]
[1754454082341,9.28853128,162.1,162.06,88.71]
[1754454082539,9.28853128,162.09,162.07,43.28]
[1754454082755,0.66,162.08,162.07,43.28]
[1754454084449,9.28853128,162.08,162.06,88.71]
[1754454084651,8.62853128,162.07,162.06,131.97]
[1754454084866,9.28853128,162.07,162.06,88.71]
[1754454085658,8.62853128,162.07,162.06,88.71]
[1754454086166,9.28853128,162.07,162.06,88.71]
[1754454086668,15.45870466,162.07,162.06,88.71]
[1754454086974,19.56267323,162.07,162.03,43.28]
[1754454087156,8.62853128,162.04,162.02,131.99]
[1754454087353,9.28853128,162.04,162.02,43.28]
[1754454089059,9.28853128,162.03,161.99,114.71]